bitfinex-derivatives/quotes_SOLF0:USTF0_20250320
["timestamp","ask_amount","ask_price","bid_price","bid_amount"]
[1742472169462,7.6586,130.63,130.61,0.05564047]
[1742472170760,7.6587,130.62,130.61,0.05564047]
[1742472171065,27.56,130.62,130.55,45.30805228]
[1742472171261,7.6601,130.6,130.55,27.56]
[1742472171661,2.1568,130.61,130.55,45.30805228]
[1742472171864,2.1568,130.61,130.54,17.74805228]
[1742472172057,2.1568,130.61,130.56,0.05807118]
[1742472172058,17.74805228,130.6,130.56,0.05807118]
[1742472172257,17.74805228,130.58,130.51,27.58]
[1742472172459,7.6635,130.54,130.51,27.58]
[1742472173060,7.6635,130.54,130.51,35.2445]
[1742472173363,7.664,130.53,130.51,0.04173219]
[1742472173564,11.41868153,130.54,130.51,0.04173219]
[1742472173764,0.05466727,130.54,130.51,0.04173219]
[1742472174267,7.6639,130.53,130.51,0.04173219]
[1742472174464,27.58,130.53,130.51,0.04173219]
[1742472174763,11.36401426,130.52,130.51,0.04173219]
[1742472174967,19.02851426,130.52,130.51,0.04173219]
[1742472175266,27.58,130.53,130.51,0.04173219]
[1742472175466,35.2445,130.53,130.51,0.04173219]
[1742472175965,27.58,130.53,130.51,0.04173219]
[1742472176166,35.2442,130.53,130.51,0.04173219]
[1742472176470,27.58,130.53,130.51,0.04173219]
[1742472177167,27.58,130.53,130.51,7.70673219]
[1742472177563,27.58,130.53,130.51,0.04173219]
[1742472177766,27.58,130.53,130.52,7.6645]
[1742472177972,27.58,130.53,130.51,0.04173219]
[1742472178661,27.58,130.53,130.51,7.70653219]
[1742472178857,0.05466727,130.54,130.51,7.70653219]
[1742472179071,7.71816727,130.54,130.51,0.04173219]
[1742472179262,0.05466727,130.54,130.51,0.04173219]
[1742472179665,0.05466727,130.54,130.51,7.70683219]
[1742472179866,27.56,130.53,130.51,7.70683219]
[1742472180373,27.56,130.53,130.52,7.6645]
[1742472181069,27.56,130.53,130.51,7.70653219]
[1742472181372,27.56,130.53,130.51,0.04173219]
[1742472182367,27.56,130.53,130.52,7.6645]
[1742472183672,27.56,130.53,130.51,7.70663219]
[1742472184474,27.56,130.53,130.51,0.04173219]
[1742472184773,35.2243,130.53,130.51,0.04173219]
[1742472185170,27.56,130.53,130.51,0.04173219]
[1742472188373,7.6645,130.52,130.51,0.04173219]
[1742472188682,47.3329491,130.53,130.48,252.76]
[1742472189079,47.3329491,130.53,130.46,27.52]
[1742472189378,47.3329491,130.53,130.44,45.2854491]
[1742472189572,0.05399128,130.5,130.45,7.6686]
[1742472189778,27.59399128,130.5,130.45,7.6686]
[1742472190576,27.59399128,130.5,130.44,45.2854491]
[1742472190880,0.05399128,130.5,130.46,17.7654491]
[1742472191382,0.05399128,130.5,130.48,7.6666]
[1742472191781,0.05399128,130.5,130.46,17.7654491]
[1742472191982,0.05399128,130.5,130.49,7.6663]
[1742472192975,0.05399128,130.5,130.48,7.6666]
[1742472193678,0.05399128,130.5,130.49,7.6663]
[1742472195087,27.54,130.54,130.52,7.6644]
[1742472195277,27.54,130.54,130.52,11.36225727]
[1742472195583,35.2035,130.54,130.52,11.36225727]
[1742472195785,29.6406,130.55,130.52,11.36225727]
[1742472196083,7.6633,130.54,130.52,11.36225727]
[1742472196379,7.6633,130.54,130.52,11.41624856]
[1742472197677,7.6639,130.53,130.52,0.05399129]
[1742472198783,7.6636,130.54,130.52,0.05399129]
[1742472199180,29.69299451,130.55,130.52,7.71829129]
[1742472199386,29.69299451,130.55,130.52,0.05399129]
[1742472199683,11.36225727,130.53,130.48,7.6668]
[1742472199886,19.02775727,130.51,130.48,7.6668]
[1742472200085,11.36225727,130.51,130.46,38.86225727]
[1742472200883,0.05864003,130.5,130.46,46.52995727]
[1742472201085,0.05864003,130.5,130.46,35.1677]
[1742472201281,0.05864003,130.5,130.46,27.5]
[1742472202381,0.05864003,130.5,130.46,35.1678]
[1742472203382,7.72444003,130.5,130.46,27.5]
[1742472203588,0.05864003,130.5,130.44,27.5]
[1742472203977,27.5,130.49,130.44,27.5]
[1742472204688,7.6672,130.48,130.44,27.5]
[1742472204889,27.5,130.49,130.44,27.5]
[1742472205088,0.0493815,130.47,130.44,27.5]
[1742472205389,0.0493815,130.47,130.43,252.88]
[1742472205890,27.5,130.46,130.39,19.93654454]
[1742472206079,45.26674454,130.46,130.38,295.37344093]
[1742472206283,0.04836869,130.44,130.38,295.37344093]
[1742472206486,7.6708,130.42,130.38,303.04604093]
[1742472206883,0.04945334,130.41,130.38,303.04604093]
[1742472207290,0.04945334,130.41,130.39,7.672]
[1742472208388,0.04945334,130.41,130.4,7.6716]
[1742472210284,0.04945334,130.41,130.39,25.43864454]
[1742472210589,0.04945334,130.41,130.39,17.76674454]
[1742472211091,0.04945334,130.41,130.4,7.6716]
[1742472211482,0.04945334,130.41,130.4,35.1316]
[1742472213291,0.04945334,130.41,130.38,280.36]
[1742472213683,0.04945334,130.41,130.38,288.0324]
[1742472213887,0.04945334,130.41,130.38,252.92]
[1742472215395,0.04945334,130.41,130.4,7.6716]
[1742472215594,0.04945334,130.41,130.38,252.92]
[1742472215989,0.04945334,130.41,130.35,17.76674454]
[1742472216392,0.04945334,130.41,130.37,17.76674454]
[1742472217193,0.04945334,130.41,130.4,7.6716]
[1742472218396,0.04945334,130.41,130.39,7.6721]
[1742472218791,0.04945334,130.41,130.35,17.76674454]
[1742472218995,0.04945334,130.41,130.34,27.48]
[1742472219194,7.6726,130.39,130.33,300.23154454]
[1742472219388,7.6726,130.39,130.36,7.6738]
[1742472219696,7.6726,130.39,130.33,300.23154454]
[1742472219697,0.04847128,130.39,130.33,300.23154454]
[1742472220499,0.04847128,130.39,130.33,300.35154454]
[1742472220996,7.72097128,130.39,130.36,7.6736]
[1742472221200,0.04847128,130.39,130.33,300.35154454]
[1742472222097,0.04847128,130.39,130.37,7.673]
[1742472222798,0.04847128,130.39,130.38,7.6728]
[1742472223192,0.04847128,130.39,130.36,11.38997621]
[1742472224195,0.04847128,130.39,130.38,7.6728]
[1742472224991,0.04847128,130.39,130.35,11.38997621]
[1742472225396,7.72097128,130.39,130.35,19.06417621]
[1742472225700,0.04847128,130.39,130.35,19.06417621]
[1742472226098,7.6728,130.38,130.35,19.06417621]
[1742472226602,35.2131,130.38,130.33,11.38997621]
[1742472226902,2.15837128,130.39,130.37,11.38997621]
[1742472226903,0.04847128,130.39,130.37,11.38997621]
[1742472227098,1.9982,130.42,130.37,11.38997621]
[1742472227099,7.6719,130.4,130.37,11.38997621]
[1742472227301,0.05769205,130.39,130.36,11.38997621]
[1742472227500,0.05769205,130.39,130.37,7.6733]
[1742472227804,0.05769205,130.39,130.36,11.38997621]
[1742472228103,0.05769205,130.39,130.36,19.06357621]
[1742472228302,11.44766826,130.39,130.35,27.54]
[1742472228702,39.08766826,130.39,130.35,7.6741]
[1742472229101,39.08766826,130.39,130.34,11.38997621]
[1742472229403,27.69769205,130.39,130.36,11.38997621]
[1742472230005,27.69769205,130.39,130.36,19.06357621]
[1742472230306,27.69769205,130.39,130.36,11.38997621]
[1742472230606,39.08766826,130.39,130.34,11.38997621]
[1742472230801,46.76016826,130.39,130.34,11.38997621]
[1742472231001,39.08766826,130.39,130.34,11.38997621]
[1742472231201,39.08766826,130.39,130.36,7.6736]
[1742472231807,27.69769205,130.39,130.37,7.6731]
[1742472231999,27.69769205,130.39,130.35,11.38997621]
[1742472232307,27.69769205,130.39,130.36,7.6735]
[1742472232602,27.69769205,130.39,130.35,11.38997621]
[1742472233504,27.69769205,130.39,130.36,7.6735]
[1742472234206,39.08766826,130.39,130.35,11.38997621]
[1742472234505,11.38997621,130.38,130.33,11.38997621]
[1742472235005,7.6737,130.37,130.34,7.6748]
[1742472235403,11.38997621,130.38,130.34,7.6748]
[1742472235597,19.06327621,130.38,130.35,7.6744]
[1742472235803,11.38997621,130.38,130.33,11.38997621]
[1742472236508,7.6737,130.37,130.33,11.38997621]
[1742472236707,7.6737,130.37,130.34,7.6748]
[1742472236907,0.05229563,130.36,130.34,7.6748]
[1742472237301,7.6745,130.35,130.32,7.676]
[1742472237701,39.04227184,130.36,130.31,11.38997621]
[1742472237906,39.04227184,130.36,130.32,11.38997621]
[1742472238107,27.65229563,130.36,130.32,11.38997621]
[1742472238310,27.65229563,130.36,130.33,11.38997621]
[1742472238507,0.05229563,130.36,130.35,19.06447621]
[1742472239412,0.05229563,130.36,130.35,7.6745]
[1742472241208,0.05229563,130.36,130.34,19.06477621]
[1742472241410,0.05229563,130.36,130.34,7.6748]
[1742472242107,0.05229563,130.36,130.35,7.6745]
[1742472242709,0.05229563,130.36,130.34,7.6748]
[1742472243306,7.72629563,130.36,130.34,7.6748]
[1742472243511,0.05229563,130.36,130.34,7.6748]
[1742472243909,7.72629563,130.36,130.34,7.6748]
[1742472244215,0.05229563,130.36,130.35,7.6745]
[1742472249012,0.05229563,130.36,130.34,7.6749]
[1742472249312,0.05229563,130.36,130.33,11.38997621]
[1742472249506,0.05229563,130.36,130.34,7.6748]
[1742472249910,7.72659563,130.36,130.33,11.38997621]
[1742472250111,7.72659563,130.36,130.34,7.6751]
[1742472250608,0.05229563,130.36,130.34,7.6751]
[1742472250812,0.05229563,130.36,130.35,7.6745]
[1742472252207,0.05229563,130.36,130.34,7.6748]
[1742472252412,0.05229563,130.36,130.33,11.38997621]
[1742472252813,7.72639563,130.36,130.34,7.6748]
[1742472253407,0.05229563,130.36,130.34,7.6748]
[1742472253711,0.05229563,130.36,130.3,27.52]
[1742472253916,7.72639563,130.36,130.32,11.38997621]
[1742472254113,0.05229563,130.36,130.32,11.38997621]
[1742472256016,0.05229563,130.36,130.35,7.6745]
[1742472256214,0.05229563,130.36,130.32,11.38997621]
[1742472256610,0.05229563,130.36,130.33,7.6754]
[1742472256813,7.72649563,130.36,130.33,7.6754]
[1742472257017,0.05229563,130.36,130.32,11.38997621]
[1742472257311,0.05229563,130.36,130.35,7.6745]
[1742472257515,0.05229563,130.36,130.32,11.38997621]
[1742472257705,0.05229563,130.36,130.33,7.6753]
[1742472257910,0.05229563,130.36,130.32,11.38997621]
[1742472258111,0.05229563,130.36,130.35,7.6745]
[1742472258717,0.05229563,130.36,130.34,7.6748]
[1742472259918,0.05229563,130.36,130.31,27.5]
[1742472259919,11.44227184,130.36,130.31,27.5]
[1742472260116,11.44227184,130.36,130.31,11.38997621]
[1742472260420,27.5,130.35,130.33,7.6753]
[1742472260817,27.5,130.35,130.33,7.6756]
[1742472261617,35.1745,130.35,130.32,7.676]
[1742472261819,35.1745,130.35,130.31,11.38997621]
[1742472262021,27.5,130.35,130.33,7.6756]
[1742472262215,27.5,130.35,130.31,11.38997621]
[1742472262613,27.5,130.35,130.34,7.6751]
[1742472263713,27.5,130.35,130.33,7.6755]
[1742472264315,27.5,130.35,130.34,7.6751]
[1742472265922,27.5,130.35,130.31,11.38997621]
[1742472266916,27.5,130.35,130.33,7.6754]
[1742472268328,27.5,130.35,130.34,7.6751]
[1742472270534,0.05229563,130.36,130.35,7.6745]
[1742472270734,0.05229563,130.36,130.33,11.38997621]
[1742472271034,7.72619563,130.36,130.33,11.38997621]
[1742472271233,7.72619563,130.36,130.31,11.38997621]
[1742472271431,7.72619563,130.36,130.33,7.6753]
[1742472272232,7.72619563,130.36,130.31,11.38997621]
[1742472272233,7.72619563,130.36,130.34,7.6751]
[1742472272433,7.72619563,130.36,130.31,11.38997621]
[1742472272635,7.72619563,130.36,130.33,7.6752]
[1742472272832,0.05229563,130.36,130.31,11.38997621]
[1742472273335,7.72619563,130.36,130.33,7.6754]
[1742472273740,7.72619563,130.36,130.31,11.38997621]
[1742472273932,0.05229563,130.36,130.34,7.6748]
[1742472274441,0.05229563,130.36,130.35,7.6745]
[1742472274741,0.05229563,130.36,130.33,11.38997621]
[1742472274941,0.05229563,130.36,130.34,7.6748]
[1742472275137,0.05229563,130.36,130.33,11.38997621]
[1742472275642,7.72649563,130.36,130.33,19.06527621]
[1742472276344,7.72649563,130.36,130.34,7.6751]
[1742472276638,0.05229563,130.36,130.33,11.38997621]
[1742472276840,0.05229563,130.36,130.35,7.6745]
[1742472277235,0.05229563,130.36,130.34,7.6748]
[1742472278547,0.05229563,130.36,130.35,7.6745]
[1742472278739,0.05229563,130.36,130.33,11.38997621]
[1742472279444,0.05229563,130.36,130.34,7.6748]
[1742472282443,0.05229563,130.36,130.34,7.6747]
[1742472282944,7.72629563,130.36,130.33,7.6754]
[1742472283544,7.72629563,130.36,130.31,11.38997621]
[1742472284247,0.05229563,130.36,130.31,11.38997621]
[1742472285143,0.05229563,130.36,130.34,7.6746]
[1742472286349,11.44227184,130.36,130.28,255.2186]
[1742472286549,15.51607621,130.36,130.29,11.38997621]
[1742472286742,0.04974986,130.33,130.31,7.6765]
[1742472286946,0.04974986,130.33,130.29,11.38997621]
[1742472287446,0.04974986,130.33,130.32,7.6763]
[1742472287749,0.04974986,130.33,130.29,11.38997621]
[1742472288046,0.04974986,130.33,130.31,7.6767]
[1742472290451,19.11562607,130.33,130.3,7.6772]
[1742472290651,19.11562607,130.33,130.29,11.38997621]
[1742472290652,0.04974986,130.33,130.29,11.38997621]
[1742472291151,0.04974986,130.33,130.3,11.38997621]
[1742472291450,0.04974986,130.33,130.32,7.6763]
[1742472292048,0.04974986,130.33,130.31,7.6766]
[1742472292354,0.04974986,130.33,130.29,11.38997621]
[1742472292557,0.04974986,130.33,130.31,7.6764]
[1742472294159,0.04974986,130.33,130.32,7.6763]
[1742472294758,0.04974986,130.33,130.29,11.38997621]
[1742472294954,0.04974986,130.33,130.32,7.6763]
[1742472297458,0.04974986,130.33,130.31,7.6766]
[1742472298259,7.72564986,130.33,130.3,7.677]
[1742472298758,0.04974986,130.33,130.29,11.38997621]
[1742472299156,0.04974986,130.33,130.31,7.6767]
[1742472299662,0.04974986,130.33,130.29,11.38997621]
[1742472300761,0.04974986,130.33,130.31,7.6766]
[1742472303158,7.72554986,130.33,130.31,7.6766]
[1742472303361,11.43972607,130.33,130.22,150.73022262]
[1742472303555,27.4,130.34,130.24,42.45344093]
[1742472303556,31.4614,130.32,130.24,42.45344093]
[1742472303756,11.43888547,130.3,130.25,11.38997621]
[1742472303959,11.43888547,130.3,130.25,38.94997621]
[1742472303960,0.04890926,130.3,130.25,38.94997621]
[1742472304159,20.94994061,130.37,130.29,11.38997621]
[1742472304366,17.14494486,130.37,130.31,11.38997621]
[1742472304564,11.38997621,130.35,130.3,31.5744]
[1742472304862,11.38997621,130.33,130.29,253.26]
[1742472305065,27.64,130.32,130.29,253.26]
[1742472305364,46.75572952,130.32,130.29,0.04890926]
[1742472305564,39.07912952,130.32,130.29,0.04890926]
[1742472305964,11.38997621,130.3,130.29,0.04890926]
[1742472308468,39.07912952,130.32,130.29,7.72700926]
[1742472308664,0.04915331,130.32,130.29,0.04890926]
[1742472308859,0.04915331,130.32,130.3,11.38997621]
[1742472309059,0.04915331,130.32,130.31,7.6769]
[1742472309269,102.69856799,130.39,130.32,11.38997621]
[1742472310067,110.37096799,130.39,130.35,7.6744]
[1742472310271,0.05262252,130.37,130.35,7.6744]
[1742472310972,0.05262252,130.37,130.36,7.6739]
[1742472311266,0.05262252,130.37,130.36,19.06387621]
[1742472311466,63.56859178,130.39,130.36,11.38997621]
[1742472311672,63.56859178,130.39,130.38,7.6728]
[1742472311867,63.56859178,130.39,130.36,11.38997621]
[1742472312067,11.38997621,130.4,130.37,7.6728]
[1742472312272,11.38997621,130.4,130.36,11.38997621]
[1742472312570,11.38997621,130.4,130.37,0.04916865]
[1742472312571,0.05504227,130.39,130.37,0.04916865]
[1742472312763,0.05504227,130.39,130.38,7.6728]
[1742472313467,0.05504227,130.39,130.37,0.04916865]
[1742472314266,0.05504227,130.39,130.38,7.6728]
[1742472314661,0.05504227,130.39,130.37,0.04916865]
[1742472314866,0.05504227,130.39,130.37,7.72216865]
[1742472315268,0.05504227,130.39,130.37,0.04916865]
[1742472315770,0.05504227,130.39,130.38,7.6728]
[1742472315971,0.05504227,130.39,130.38,19.06277621]
[1742472317268,0.05504227,130.39,130.38,11.38997621]
[1742472317478,0.05504227,130.39,130.37,0.04916865]
[1742472317976,7.72754227,130.39,130.37,0.04916865]
[1742472318274,19.11751848,130.39,130.37,0.04916865]
[1742472318477,11.44501848,130.39,130.37,0.04916865]
[1742472319077,19.11761848,130.39,130.37,0.04916865]
[1742472319371,11.44501848,130.39,130.37,0.04916865]
[1742472319878,0.05504227,130.39,130.37,0.04916865]
[1742472320775,0.05504227,130.39,130.38,7.6728]
[1742472321370,0.05504227,130.39,130.38,19.06277621]
[1742472321973,0.05504227,130.39,130.38,46.72277621]
[1742472323078,0.05504227,130.39,130.38,35.3328]
[1742472323275,0.05504227,130.39,130.38,27.66]
[1742472323474,0.05504227,130.39,130.37,0.04916865]
[1742472323675,11.44501848,130.39,130.37,0.04916865]
[1742472323875,11.38997621,130.38,130.37,0.04916865]
[1742472324674,11.44501848,130.39,130.37,0.04916865]
[1742472325978,0.05504227,130.39,130.37,0.04916865]
[1742472326676,11.44501848,130.39,130.37,0.04916865]
[1742472326876,11.38997621,130.38,130.37,0.04916865]
[1742472327175,39.06997621,130.38,130.37,0.04916865]
[1742472328482,46.74277621,130.38,130.37,0.04916865]
[1742472329079,39.06997621,130.38,130.37,0.04916865]
[1742472331277,0.05504227,130.39,130.37,7.72246865]
[1742472331675,0.05504227,130.39,130.37,0.04916865]
[1742472331880,0.05504227,130.39,130.38,7.6728]
[1742472334285,0.05504227,130.39,130.38,19.06277621]
[1742472336682,27.62,130.45,130.43,7.6698]
[1742472336881,43.01197621,130.46,130.43,7.6698]
[1742472337285,13.41697621,130.46,130.44,7.6692]
[1742472337781,2.08535088,130.46,130.45,7.6686]
[1742472337986,2.08535088,130.46,130.44,0.05319342]
[1742472338285,2.08535088,130.46,130.44,7.72209342]
[1742472339181,2.08535088,130.46,130.44,0.05319342]
[1742472339580,9.75375088,130.46,130.44,0.05319342]
[1742472340385,2.08535088,130.46,130.44,0.05319342]
[1742472340682,0.05835088,130.46,130.44,0.05319342]
[1742472340888,0.05835088,130.46,130.45,7.6686]
[1742472343490,11.7281,130.53,130.49,7.6661]
[1742472344192,7.6646,130.52,130.48,7.6666]
[1742472344592,0.05394089,130.51,130.49,0.0525979]
[1742472345192,7.71914089,130.51,130.49,0.0525979]
[1742472346091,0.05394089,130.51,130.49,0.0525979]
[1742472347193,0.05394089,130.51,130.49,7.7184979]
[1742472348386,0.05394089,130.51,130.5,7.6657]
[1742472348790,0.05394089,130.51,130.49,0.0525979]
[1742472349190,0.05394089,130.51,130.49,7.7186979]
[1742472349393,0.05394089,130.51,130.49,0.0525979]
[1742472349594,27.65394089,130.51,130.49,0.0525979]
[1742472349794,7.6657,130.5,130.49,0.0525979]
[1742472350790,35.31934089,130.51,130.49,0.0525979]
[1742472350991,27.65394089,130.51,130.49,7.7188979]
[1742472351594,27.65394089,130.51,130.49,0.0525979]
[1742472351791,0.05394089,130.51,130.49,0.0525979]
[1742472353497,0.05394089,130.51,130.49,7.7185979]
[1742472354090,0.05394089,130.51,130.49,0.0525979]
[1742472355202,7.6657,130.5,130.49,0.0525979]
[1742472356092,0.05394089,130.51,130.46,27.54]
[1742472356289,27.54,130.5,130.44,27.54]
[1742472356690,7.6665,130.49,130.46,7.668]
[1742472357301,7.72028526,130.49,130.46,7.71658968]
[1742472357599,0.05378526,130.49,130.46,0.04858968]
[1742472358100,7.72018526,130.49,130.46,7.71628968]
[1742472358405,0.05378526,130.49,130.46,0.04858968]
[1742472359203,0.05378526,130.49,130.47,7.6672]
[1742472360106,0.05378526,130.49,130.46,0.04858968]
[1742472360595,0.05378526,130.49,130.47,7.6672]
[1742472361203,0.05378526,130.49,130.48,7.6669]
[1742472364999,0.05378526,130.49,130.48,25.44621893]
[1742472367107,0.05378526,130.49,130.48,19.03414243]
[1742472375806,0.05378526,130.49,130.35,263.26207555]
[1742472376007,0.05378526,130.49,128.71,91.31273149]
[1742472376008,11.36724243,130.36,130.18,2.0015]
[1742472376309,31.5,130.35,130.27,167.94932886]
[1742472376506,11.36724243,130.29,130.27,156.58208643]
[1742472376707,31.5,130.35,130.28,252.92]
[1742472376908,0.0536527,130.29,130.28,10.94360369]
[1742472377213,5.56005319,130.29,130.27,156.63606937]
[1742472377413,5.50028306,130.28,130.27,92.38102909]
[1742472377613,14.31052384,130.28,130.18,6.0832]
[1742472377813,17.8343637,130.26,130.19,284.56]
[1742472378214,17.8343637,130.28,130.19,284.56]
[1742472378514,17.8343637,130.26,130.19,284.56]
[1742472378915,244.97010099,130.2,130.19,284.56]
[1742472379106,182.97010099,130.2,130.19,346.56]
[1742472379308,214.47010099,130.2,130.11,253.02]
[1742472379512,214.47010099,130.2,130.12,2.0811]
[1742472379815,154.48509708,130.2,130.13,31.72]
[1742472380004,122.84932265,130.2,130.13,31.72]
[1742472380412,0.04931535,130.18,130.15,0.05164732]
[1742472381316,348.51587815,130.17,130.15,31.76]
[1742472381505,345.23677815,130.17,130.15,31.76]
[1742472382216,345.23677815,130.17,130.16,62.0]
[1742472382616,84.79142265,130.17,130.15,31.76]
[1742472382813,84.79142265,130.17,130.15,39.4463]
[1742472383009,84.79142265,130.17,130.15,31.76]
[1742472383822,120.3168445,130.17,130.16,62.0]
[1742472384213,120.3168445,130.17,130.15,31.68]
[1742472385222,120.3168445,130.17,130.16,62.0]
[1742472385422,120.3168445,130.17,130.15,31.62]
[1742472386120,244.17756297,130.17,130.15,31.62]
[1742472386515,244.17756297,130.17,130.12,2.0811]
[1742472386516,244.17756297,130.17,130.14,31.6]
[1742472387021,244.17756297,130.17,130.14,39.2864]
[1742472387216,244.17756297,130.17,130.14,31.6]
[1742472387619,244.17756297,130.17,130.15,62.0]
[1742472387821,35.52542185,130.17,130.15,62.0]
[1742472388225,35.52542185,130.17,130.14,39.2867]
[1742472388526,35.52542185,130.17,130.14,31.6]
[1742472388924,35.52542185,130.17,130.15,7.6862]
[1742472389125,35.52542185,130.17,130.16,44.0]
[1742472391729,0.04931535,130.18,130.16,44.0]
[1742472392029,0.04931535,130.18,130.17,253.38]
[1742472394134,0.04931535,130.18,130.17,146.17557492]
[1742472395431,0.04931535,130.18,130.17,92.57304534]
[1742472396131,0.04931535,130.18,130.16,253.44]
[1742472398531,0.04931535,130.18,130.16,261.1257]
[1742472398726,0.04931535,130.18,130.16,253.44]
[1742472399736,0.04931535,130.18,130.13,28.56098689]
[1742472399940,0.04931535,130.18,130.16,253.46]
[1742472400135,0.04931535,130.18,130.16,261.1456]
[1742472401528,0.04931535,130.18,130.16,253.46]
[1742472401839,0.04931535,130.18,130.14,253.46]
[1742472402235,7.73431535,130.18,130.14,253.46]
[1742472403139,30.92,130.17,130.14,253.46]
[1742472403341,30.92,130.17,130.12,19.92755334]
[1742472403758,7.6861,130.16,130.12,19.92755334]
[1742472404232,7.7443401,130.15,130.11,17.84645334]
[1742472404437,0.0574401,130.15,130.13,17.84645334]
[1742472405030,0.0574401,130.15,130.13,25.53335334]
[1742472406132,0.0574401,130.15,130.13,17.84645334]
[1742472406738,0.0574401,130.15,130.13,25.53385334]
[1742472406935,0.0574401,130.15,130.13,17.84645334]
[1742472407139,0.0574401,130.15,130.11,17.84645334]
[1742472407342,0.0574401,130.15,130.12,7.6878]
[1742472407635,0.0574401,130.15,130.11,17.84645334]
[1742472407837,30.86,130.14,130.11,17.84645334]
[1742472408435,30.86,130.14,130.09,275.38565334]
[1742472408632,30.86,130.14,130.1,7.689]
[1742472408837,30.86,130.14,130.09,275.38565334]
[1742472409239,30.86,130.14,130.11,7.6883]
[1742472409843,30.86,130.14,130.1,7.689]
[1742472410038,30.86,130.14,130.09,275.38565334]
[1742472410446,30.86,130.14,130.11,7.6887]
[1742472410744,30.86,130.14,130.09,275.38565334]
[1742472411246,0.0574401,130.15,130.11,17.84645334]
[1742472411541,0.0574401,130.15,130.13,7.687]
[1742472412444,0.0574401,130.15,130.14,7.6869]
[1742472412636,0.0574401,130.15,130.11,17.84645334]
[1742472414139,0.0574401,130.15,130.13,7.6872]
[1742472414340,0.0574401,130.15,130.11,17.84645334]
[1742472414541,0.0574401,130.15,130.12,7.6878]
[1742472414746,0.0574401,130.15,130.11,17.84645334]
[1742472415046,0.0574401,130.15,130.12,7.688]
[1742472415235,0.0574401,130.15,130.11,17.84645334]
[1742472415546,0.0574401,130.15,130.12,7.688]
[1742472415845,0.0574401,130.15,130.11,17.84645334]
[1742472416043,0.0574401,130.15,130.14,7.6869]
[1742472416846,0.0574401,130.15,130.11,17.84645334]
[1742472417438,0.0574401,130.15,130.14,7.6869]
[1742472417639,5.5124351,130.15,130.14,7.6869]
[1742472417840,7.43372657,130.15,130.14,7.6869]
[1742472418242,16.16171857,130.15,130.14,7.6869]
[1742472418447,16.20089249,130.15,130.14,7.6869]
[1742472420245,23.10629189,130.15,130.14,7.6869]
[1742472420549,16.32860098,130.15,130.14,7.6869]
[1742472421148,22.96746571,130.15,130.11,17.84645334]
[1742472421348,5.51918054,130.14,130.11,17.84645334]
[1742472421549,7.44047201,130.13,130.11,17.84645334]
[1742472421742,5.51918054,130.12,130.11,17.84645334]
[1742472421940,1.92137201,130.12,130.11,25.53515334]
[1742472422351,1.92129147,130.12,130.11,25.53515334]
[1742472422552,0.0574401,130.15,130.13,7.687]
[1742472422852,0.0574401,130.15,130.11,17.84645334]
[1742472424153,0.0574401,130.15,130.09,21.92565334]
[1742472424357,0.0574401,130.15,130.11,7.6884]
[1742472424647,0.0574401,130.15,130.1,30.4]
[1742472425246,0.0574401,130.15,130.12,11.43069248]
[1742472425455,0.0574401,130.15,130.12,19.11859248]
[1742472425655,0.0574401,130.15,130.12,11.43069248]
[1742472425954,0.0574401,130.15,130.13,7.6874]
[1742472426258,0.0574401,130.15,130.12,11.43069248]
[1742472426553,0.0574401,130.15,130.12,19.11839248]
[1742472427353,0.0574401,130.15,130.13,7.6874]
[1742472427548,0.0574401,130.15,130.12,11.43069248]
[1742472427953,0.0574401,130.15,130.12,19.11849248]
[1742472428449,0.0574401,130.15,130.12,11.43069248]
[1742472428754,30.24,130.14,130.1,11.43069248]
[1742472429149,30.24,130.14,130.11,7.6881]
[1742472429452,30.24,130.14,130.1,11.43069248]
[1742472429658,30.24,130.14,130.12,7.6876]
[1742472430054,30.24,130.14,130.1,11.43069248]
[1742472430250,30.24,130.14,130.11,7.6886]
[1742472430455,30.24,130.14,130.1,11.43069248]
[1742472430756,30.24,130.14,130.11,7.6886]
[1742472430951,30.24,130.14,130.1,11.43069248]
[1742472431255,30.24,130.14,130.11,11.43069248]
[1742472431455,30.24,130.14,130.13,7.6875]
[1742472432657,0.0574401,130.15,130.14,7.6869]
[1742472433157,0.0574401,130.15,130.13,11.43069248]
[1742472433353,0.0574401,130.15,130.13,19.11789248]
[1742472433555,0.0574401,130.15,130.13,11.43069248]
[1742472433968,0.0574401,130.15,130.14,7.6869]
[1742472434159,0.0574401,130.15,130.14,19.11759248]